[Event "Vetern-SM 50+ 2025"]
[Site "Uppsala, Sweden"]
[Date "2025.07.04"]
[Round "7.6"]
[White "Ivarsson, Anders"]
[Black "Svensson, Hakan"]
[Result "1-0"]
[TimeControl "90 min for 40 move + 30 min with an increment of 30 sec starting move 1"]
[WhiteFideId "1768158"]
[BlackFideId "1714201"]
[WhiteElo "1987"]
[BlackElo "2004"]

1. Nf3 {[%clk 01:30:59]} Nf6 {[%clk 01:30:48]} {[%emt 00:00:12]} 2. c4 {[%clk
01:31:24]} {[%emt 00:00:06]} e6 {[%clk 01:31:13]} {[%emt 00:00:05]} 3. d4
{[%clk 01:31:48]} {[%emt 00:00:06]} c5 {[%clk 01:31:27]} {[%emt 00:00:16]} 4.
Nc3 {[%clk 01:31:57]} {[%emt 00:00:20]} d5 {[%clk 01:31:35]} {[%emt 00:00:23]}
5. cxd5 {[%clk 01:31:44]} {[%emt 00:00:43]} exd5 {[%clk 01:31:35]} {[%emt
00:00:30]} 6. Bg5 {[%clk 01:31:42]} {[%emt 00:00:32]} Be6 {[%clk 01:31:59]}
{[%emt 00:00:06]} 7. e3 {[%clk 01:31:36]} {[%emt 00:00:36]} c4 {[%clk
01:32:13]} {[%emt 00:00:16]} 8. Be2 {[%clk 01:29:41]} {[%emt 00:02:25]} Be7
{[%clk 01:31:44]} {[%emt 00:00:58]} 9. O-O {[%clk 01:30:01]} {[%emt 00:00:11]}
Nc6 {[%clk 01:27:27]} {[%emt 00:04:46]} 10. b3 {[%clk 01:29:00]} {[%emt
00:01:33]} Qa5 {[%clk 01:27:17]} {[%emt 00:00:39]} 11. Bxf6 {[%clk 01:21:44]}
{[%emt 00:07:45]} gxf6 {[%clk 01:25:43]} {[%emt 00:02:04]} 12. Na4 {[%clk
01:20:12]} {[%emt 00:02:03]} b5 {[%clk 01:24:12]} {[%emt 00:02:00]} 13. Nc5
{[%clk 01:20:17]} {[%emt 00:00:26]} Bxc5 {[%clk 01:10:23]} {[%emt 00:14:18]} 14.
dxc5 {[%clk 01:20:43]} {[%emt 00:00:04]} O-O-O {[%clk 01:10:08]} {[%emt
00:00:45]} 15. Nd4 {[%clk 01:18:55]} {[%emt 00:02:18]} Ne7 {[%clk 01:06:29]}
{[%emt 00:04:08]} 16. a3 {[%clk 01:17:01]} {[%emt 00:02:25]} Rhg8 {[%clk
01:02:10]} {[%emt 00:04:49]} 17. b4 {[%clk 01:16:28]} {[%emt 00:01:04]} Qa6
{[%clk 00:58:07]} {[%emt 00:04:33]} 18. f4 {[%clk 01:12:02]} {[%emt 00:04:56]}
Nf5 {[%clk 00:53:13]} {[%emt 00:05:22]} 19. Qd2 {[%clk 01:11:39]} {[%emt
00:00:54]} Nxd4 {[%clk 00:33:38]} {[%emt 00:20:06]} 20. Qxd4 {[%clk 01:11:53]}
{[%emt 00:00:15]} Bf5 {[%clk 00:33:41]} {[%emt 00:00:27]} 21. Bf3 {[%clk
01:05:31]} {[%emt 00:06:53]} Bd3 {[%clk 00:33:39]} {[%emt 00:00:32]} 22. Rf2
{[%clk 01:05:09]} {[%emt 00:00:51]} f5 {[%clk 00:24:13]} {[%emt 00:09:56]} 23.
a4 {[%clk 00:55:06]} {[%emt 00:10:33]} Be4 {[%clk 00:24:12]} {[%emt 00:00:31]}
24. axb5 {[%clk 00:54:06]} {[%emt 00:01:30]} Qxb5 {[%clk 00:24:25]} {[%emt
00:00:18]} 25. c6 {[%clk 00:43:54]} {[%emt 00:10:42]} Qxc6 {[%emt 00:10:07]} 26.
Ra5 {[%clk 00:43:10]} Qb6 {[%clk 00:14:47]} {[%emt 00:01:44]} 27. Rc5+ {[%clk
00:42:11]} {[%emt 00:01:30]} Kb7 {[%clk 00:14:37]} {[%emt 00:00:39]} 28. Bxe4
{[%clk 00:36:53]} {[%emt 00:05:49]} fxe4 {[%clk 00:14:24]} {[%emt 00:00:43]} 29.
Ra2 {[%clk 00:36:15]} {[%emt 00:01:08]} a6 {[%clk 00:10:39]} {[%emt 00:04:15]}
30. Kf2 {[%clk 00:20:56]} {[%emt 00:15:48]} Qg6 {[%clk 00:03:57]} {[%emt
00:07:12]} 31. Ke1 {[%clk 00:20:49]} {[%emt 00:00:37]} Qb6 {[%clk 00:03:12]}
{[%emt 00:01:15]} 32. Rb2 {[%clk 00:19:46]} {[%emt 00:01:34]} Rg6 {[%clk
00:03:21]} {[%emt 00:00:20]} 33. g3 {[%clk 00:15:07]} {[%emt 00:05:10]} h5
{[%clk 00:02:45]} {[%emt 00:01:05]} 34. Qe5 {[%clk 00:14:24]} {[%emt 00:01:13]}
Qf6 {[%clk 00:02:44]} {[%emt 00:00:32]} 35. Qc7+ {[%clk 00:12:44]} {[%emt
00:02:10]} Ka8 {[%clk 00:03:10]} {[%emt 00:00:05]} 36. Ra2 {[%clk 00:12:46]}
{[%emt 00:00:27]} Qc3+ {[%clk 00:03:20]} {[%emt 00:00:20]} 37. Kf2 {[%clk
00:12:48]} {[%emt 00:00:27]} Rb8 {[%clk 00:01:50]} {[%emt 00:01:59]} 38. Rc6
{[%clk 00:07:22]} {[%emt 00:05:57]} Rxc6 {[%clk 00:02:12]} {[%emt 00:00:09]} 39.
Qxc6+ {[%clk 00:07:45]} {[%emt 00:00:07]} Rb7 {[%clk 00:02:40]} {[%emt
00:00:02]} 40. Rxa6+ {[%clk 00:07:40]} {[%emt 00:00:33]} Kb8 {[%clk 00:03:09]}
{[%emt 00:00:03]} 41. Qe8+ {[%clk 00:05:40]} {[%emt 00:02:29]} 1-0

[Event "Vetern-SM 50+ 2025"]
[Site "Uppsala, Sweden"]
[Date "2025.07.04"]
[Round "7.7"]
[White "Uneson, Marcus"]
[Black "Tobiasson, Bjorn"]
[Result "1-0"]
[TimeControl "90 min for 40 move + 30 min with an increment of 30 sec starting move 1"]
[WhiteFideId "1730509"]
[BlackFideId "1773682"]
[WhiteElo "2118"]
[BlackElo "1884"]

1. d4 {[%clk 01:27:16]} {[%emt 00:03:44]} Nf6 {[%clk 01:30:47]} {[%emt
00:00:12]} 2. Bg5 {[%clk 01:27:04]} {[%emt 00:00:43]} d5 {[%clk 01:30:58]}
{[%emt 00:00:18]} 3. Bxf6 {[%clk 01:26:43]} {[%emt 00:00:51]} exf6 {[%clk
01:31:16]} {[%emt 00:00:12]} 4. e3 {[%clk 01:26:58]} {[%emt 00:00:16]} Bd6
{[%clk 01:24:42]} {[%emt 00:07:04]} 5. c4 {[%clk 01:27:20]} {[%emt 00:00:08]}
c6 {[%clk 01:23:51]} {[%emt 00:01:21]} 6. cxd5 {[%clk 01:27:28]} {[%emt
00:00:22]} cxd5 {[%clk 01:24:05]} {[%emt 00:00:16]} 7. Nc3 {[%clk 01:27:33]}
{[%emt 00:00:24]} Be6 {[%clk 01:10:45]} {[%emt 00:13:50]} 8. g3 {[%clk
01:25:49]} {[%emt 00:02:15]} Qb6 {[%clk 01:02:58]} {[%emt 00:08:17]} 9. Qd2
{[%clk 01:20:26]} {[%emt 00:05:53]} Nc6 {[%clk 00:59:37]} {[%emt 00:03:51]} 10.
Bg2 {[%clk 01:17:40]} {[%emt 00:03:16]} Ne7 {[%clk 00:54:25]} {[%emt 00:05:42]}
11. Nge2 {[%clk 01:17:50]} {[%emt 00:00:20]} O-O {[%clk 00:54:21]} {[%emt
00:00:34]} 12. O-O {[%clk 01:17:50]} {[%emt 00:00:30]} Rfd8 {[%clk 00:52:45]}
{[%emt 00:02:05]} 13. Nf4 {[%clk 01:15:46]} {[%emt 00:02:35]} Bb4 {[%clk
00:49:47]} {[%emt 00:03:28]} 14. Nd3 {[%clk 01:14:12]} {[%emt 00:02:04]} Bxc3
{[%clk 00:47:33]} {[%emt 00:02:44]} 15. Qxc3 {[%clk 01:12:16]} {[%emt
00:02:25]} Rac8 {[%clk 00:47:33]} {[%emt 00:00:31]} 16. Qa3 {[%clk 01:12:24]}
{[%emt 00:00:22]} Nc6 {[%clk 00:44:49]} {[%emt 00:03:13]} 17. Rfc1 {[%clk
01:10:14]} {[%emt 00:02:40]} h6 {[%clk 00:38:47]} {[%emt 00:06:32]} 18. Rc5
{[%clk 01:07:35]} {[%emt 00:03:10]} Rd6 {[%clk 00:32:50]} {[%emt 00:06:27]} 19.
Rac1 {[%clk 01:07:13]} {[%emt 00:00:52]} Qd8 {[%clk 00:33:03]} {[%emt
00:00:17]} 20. R5c3 {[%clk 01:03:44]} {[%emt 00:03:59]} g5 {[%clk 00:29:29]}
{[%emt 00:04:05]} 21. b4 {[%clk 01:02:14]} {[%emt 00:01:59]} a6 {[%clk
00:27:23]} {[%emt 00:02:36]} 22. Nc5 {[%clk 01:00:57]} {[%emt 00:01:47]} Qe7
{[%clk 00:25:36]} {[%emt 00:02:18]} 23. Bf1 {[%clk 00:56:55]} {[%emt 00:04:31]}
Na7 {[%clk 00:21:01]} {[%emt 00:05:05]} 24. Qb3 {[%clk 00:42:32]} {[%emt
00:14:53]} Nb5 {[%clk 00:18:12]} {[%emt 00:03:19]} 25. Bxb5 {[%clk 00:38:54]}
{[%emt 00:04:09]} axb5 {[%clk 00:18:41]} {[%emt 00:00:01]} 26. Nxe6 {[%clk
00:35:51]} {[%emt 00:03:32]} Rxc3 {[%clk 00:18:56]} {[%emt 00:00:16]} 27. Rxc3
{[%clk 00:36:04]} {[%emt 00:00:16]} fxe6 {[%clk 00:18:15]} {[%emt 00:01:11]} 28.
Qc2 {[%clk 00:35:51]} {[%emt 00:00:43]} Rc6 {[%clk 00:14:53]} {[%emt 00:03:52]}
29. Rxc6 {[%clk 00:32:11]} {[%emt 00:04:09]} bxc6 {[%clk 00:15:22]} {[%emt
00:00:02]} 30. Qxc6 {[%clk 00:30:23]} {[%emt 00:02:18]} Qxb4 {[%clk 00:15:48]}
{[%emt 00:00:04]} 31. Qxe6+ {[%clk 00:30:46]} {[%emt 00:00:07]} Kg7 {[%clk
00:15:58]} {[%emt 00:00:20]} 32. Qd7+ {[%clk 00:30:32]} {[%emt 00:00:44]} Kf8
{[%clk 00:14:43]} {[%emt 00:01:45]} 33. Qxd5 {[%clk 00:30:55]} {[%emt
00:00:08]} Qb1+ {[%clk 00:14:34]} {[%emt 00:00:38]} 34. Kg2 {[%clk 00:31:18]}
{[%emt 00:00:07]} f5 {[%clk 00:12:24]} {[%emt 00:02:40]} 35. Qa8+ {[%clk
00:27:56]} {[%emt 00:03:52]} Kg7 {[%clk 00:12:27]} {[%emt 00:00:27]} 36. Qb7+
{[%clk 00:28:21]} {[%emt 00:00:05]} Kf6 {[%clk 00:10:37]} {[%emt 00:02:20]} 37.
a4 {[%clk 00:28:44]} {[%emt 00:00:07]} b4 {[%clk 00:10:38]} {[%emt 00:00:29]}
38. a5 {[%clk 00:29:11]} {[%emt 00:00:04]} Qe4+ {[%clk 00:07:59]} {[%emt
00:03:08]} 39. Qxe4 {[%clk 00:28:46]} {[%emt 00:00:56]} fxe4 {[%clk 00:08:27]}
{[%emt 00:00:01]} 40. a6 {[%clk 00:29:11]} {[%emt 00:00:05]} b3 {[%clk
00:08:41]} {[%emt 00:00:16]} 41. a7 {[%clk 00:29:36]} {[%emt 00:00:05]} b2
{[%clk 00:09:06]} {[%emt 00:00:06]} 42. a8=Q {[%emt 00:00:24]} b1=Q {[%clk
00:09:23]} 43. Qf8+ {[%clk 00:28:20]} {[%emt 00:02:03]} Kg6 {[%clk 00:06:34]}
{[%emt 00:03:19]} 44. Qe8+ {[%clk 00:28:40]} {[%emt 00:00:10]} Kg7 {[%clk
00:06:36]} {[%emt 00:00:28]} 45. Qe5+ {[%clk 00:28:54]} {[%emt 00:00:16]} Kg6
{[%clk 00:04:04]} {[%emt 00:03:02]} 46. h3 {[%clk 00:28:57]} {[%emt 00:00:26]}
h5 {[%clk 00:04:01]} {[%emt 00:00:33]} 47. d5 {[%clk 00:28:22]} {[%emt
00:01:06]} g4 {[%clk 00:03:29]} {[%emt 00:01:02]} 48. h4 {[%clk 00:28:46]}
{[%emt 00:00:06]} Qd1 {[%clk 00:29:29]} {[%emt 00:04:30]} 49. Qxe4+ {[%clk
00:58:53]} {[%emt 00:00:23]} Kg7 {[%clk 00:29:39]} {[%emt 00:00:20]} 50. Qe5+
{[%clk 00:59:04]} {[%emt 00:00:19]} Kf8 {[%clk 00:29:35]} {[%emt 00:00:33]} 51.
Qf4+ {[%clk 00:58:25]} {[%emt 00:01:09]} Kg7 {[%clk 00:29:22]} {[%emt
00:00:44]} 52. d6 {[%clk 00:58:10]} {[%emt 00:00:45]} Qd5+ {[%clk 00:29:08]}
{[%emt 00:00:43]} 53. e4 {[%clk 00:58:28]} {[%emt 00:00:13]} Qd1 {[%clk
00:29:14]} {[%emt 00:00:24]} 54. Qg5+ {[%clk 00:58:35]} {[%emt 00:00:22]} Kf8
{[%clk 00:28:43]} {[%emt 00:01:01]} 55. Qf5+ {[%clk 00:58:30]} {[%emt
00:00:35]} Ke8 {[%clk 00:28:18]} {[%emt 00:00:55]} 56. Qxh5+ {[%clk 00:57:49]}
{[%emt 00:01:12]} Kd7 {[%clk 00:28:29]} {[%emt 00:00:20]} 57. Qf5+ {[%clk
00:56:32]} {[%emt 00:01:45]} Kxd6 {[%clk 00:28:34]} {[%emt 00:00:25]} 58. Qd5+
{[%clk 00:56:44]} {[%emt 00:00:18]} 1-0

[Event "Vetern-SM 50+ 2025"]
[Site "Uppsala, Sweden"]
[Date "2025.07.04"]
[Round "7.8"]
[White "Hedin, Niclas"]
[Black "Styf, Josef"]
[Result "0-1"]
[TimeControl "90 min for 40 move + 30 min with an increment of 30 sec starting move 1"]
[WhiteFideId "1720708"]
[BlackFideId "1708279"]
[WhiteElo "1953"]
[BlackElo "2024"]

1. Nf3 {[%clk 01:29:51]} {[%emt 00:01:08]} Nf6 {[%clk 01:30:29]} {[%emt
00:00:32]} 2. d4 {[%clk 01:30:13]} {[%emt 00:00:07]} e6 {[%clk 01:30:30]}
{[%emt 00:00:29]} 3. Bg5 {[%clk 01:30:23]} {[%emt 00:00:20]} c5 {[%clk
01:30:19]} {[%emt 00:00:42]} 4. e3 {[%clk 01:30:12]} {[%emt 00:00:40]} Be7
{[%clk 01:29:58]} {[%emt 00:00:51]} 5. c3 {[%clk 01:28:18]} {[%emt 00:02:25]}
b6 {[%clk 01:29:43]} {[%emt 00:00:44]} 6. Nbd2 {[%clk 01:28:34]} {[%emt
00:00:14]} O-O {[%clk 01:27:47]} {[%emt 00:02:26]} 7. Bd3 {[%clk 01:28:49]}
{[%emt 00:00:14]} cxd4 {[%clk 01:26:03]} {[%emt 00:02:14]} 8. exd4 {[%clk
01:28:50]} {[%emt 00:00:29]} Ba6 {[%clk 01:24:41]} {[%emt 00:01:53]} 9. Bxa6
{[%clk 01:28:26]} {[%emt 00:00:54]} Nxa6 {[%clk 01:25:05]} {[%emt 00:00:06]} 10.
Qe2 {[%clk 01:28:40]} {[%emt 00:00:16]} Nc7 {[%clk 01:24:04]} {[%emt 00:01:32]}
11. O-O {[%clk 01:22:33]} {[%emt 00:06:36]} d6 {[%clk 01:18:42]} {[%emt
00:05:52]} 12. a4 {[%clk 01:19:29]} {[%emt 00:03:35]} Nfd5 {[%clk 01:15:28]}
{[%emt 00:03:43]} 13. Bxe7 {[%clk 01:19:04]} {[%emt 00:00:56]} Qxe7 {[%clk
01:14:43]} {[%emt 00:01:14]} 14. Ne4 {[%clk 01:06:18]} {[%emt 00:13:14]} h6
{[%clk 01:04:31]} {[%emt 00:10:44]} 15. Nfd2 {[%clk 01:02:32]} {[%emt
00:04:16]} f5 {[%clk 00:58:17]} {[%emt 00:06:43]} 16. Ng3 {[%clk 01:02:24]}
{[%emt 00:00:38]} Qh4 {[%clk 00:54:47]} {[%emt 00:04:01]} 17. Rfe1 {[%clk
00:54:43]} {[%emt 00:08:10]} Rae8 {[%clk 00:47:12]} {[%emt 00:08:06]} 18. Qc4
{[%clk 00:45:19]} {[%emt 00:09:54]} Kh8 {[%clk 00:36:38]} {[%emt 00:11:03]} 19.
Qc6 {[%clk 00:40:11]} {[%emt 00:05:38]} Qe7 {[%clk 00:33:33]} {[%emt 00:03:36]}
20. Ne2 {[%clk 00:32:42]} {[%emt 00:07:59]} f4 {[%clk 00:32:05]} {[%emt
00:01:58]} 21. Ne4 {[%clk 00:23:35]} {[%emt 00:09:37]} f3 {[%clk 00:30:19]}
{[%emt 00:02:16]} 22. N2g3 {[%clk 00:23:34]} {[%emt 00:00:31]} Nf4 {[%clk
00:27:38]} {[%emt 00:03:09]} 23. Nxd6 {[%clk 00:10:10]} {[%emt 00:13:56]} Rd8
{[%clk 00:15:25]} {[%emt 00:12:43]} 24. Nc4 {[%clk 00:09:03]} {[%emt 00:01:37]}
fxg2 {[%clk 00:13:35]} {[%emt 00:02:20]} 25. Ne5 {[%clk 00:09:04]} {[%emt
00:00:29]} Ncd5 {[%clk 00:13:02]} {[%emt 00:01:03]} 26. c4 {[%clk 00:07:46]}
{[%emt 00:01:49]} Nh3+ {[%clk 00:10:01]} {[%emt 00:03:30]} 27. Kxg2 {[%clk
00:08:02]} {[%emt 00:00:14]} Ndf4+ {[%clk 00:08:59]} {[%emt 00:01:32]} 28. Kf1
{[%clk 00:08:01]} {[%emt 00:00:30]} Rxd4 {[%clk 00:06:30]} {[%emt 00:03:00]} 29.
Rad1 {[%clk 00:06:12]} {[%emt 00:02:20]} Qd8 {[%clk 00:06:16]} {[%emt
00:00:44]} 30. Qf3 {[%clk 00:03:24]} {[%emt 00:03:17]} Ng5 {[%clk 00:04:04]}
{[%emt 00:02:42]} 31. Qg4 {[%clk 00:02:24]} {[%emt 00:01:30]} Kh7 {[%clk
00:02:22]} {[%emt 00:02:13]} 32. Nh1 {[%clk 00:00:41]} {[%emt 00:02:12]} Nd3
{[%clk 00:01:31]} {[%emt 00:01:22]} 33. Qh5 {[%clk 00:00:39]} {[%emt 00:00:32]}
Nxe5 {[%clk 00:01:31]} {[%emt 00:00:29]} 34. Ng3 {[%clk 00:29:31]} {[%emt
00:00:42]} 0-1

[Event "Vetern-SM 50+ 2025"]
[Site "Uppsala, Sweden"]
[Date "2025.07.05"]
[Round "8.1"]
[White "Vernersson, Per"]
[Black "Gromark, Jonas"]
[Result "1-0"]
[TimeControl "90 min for 40 move + 30 min with an increment of 30 sec starting move 1"]
[WhiteFideId "1700863"]
[BlackFideId "137122733"]
[WhiteElo "2258"]
[BlackElo "1822"]

1. d4 {[%clk 01:30:56]} {[%emt 00:00:03]} Nf6 {[%clk 01:30:48]} {[%emt
00:00:13]} 2. Nf3 {[%clk 01:31:11]} {[%emt 00:00:14]} c5 {[%clk 01:27:43]}
{[%emt 00:03:35]} 3. c4 {[%clk 01:28:28]} {[%emt 00:03:14]} cxd4 {[%clk
01:22:40]} {[%emt 00:05:33]} 4. Nxd4 {[%clk 01:28:50]} {[%emt 00:00:08]} e6
{[%clk 01:21:53]} {[%emt 00:01:16]} 5. Nc3 {[%clk 01:28:01]} {[%emt 00:01:19]}
d5 {[%clk 01:20:11]} {[%emt 00:02:13]} 6. e3 {[%clk 01:25:26]} {[%emt
00:03:04]} Be7 {[%clk 01:19:18]} {[%emt 00:01:23]} 7. cxd5 {[%clk 01:25:03]}
{[%emt 00:00:53]} exd5 {[%clk 01:12:00]} {[%emt 00:07:48]} 8. Bb5+ {[%clk
01:23:10]} {[%emt 00:02:23]} Bd7 {[%clk 01:09:42]} {[%emt 00:02:48]} 9. Qa4
{[%clk 01:22:12]} {[%emt 00:01:28]} O-O {[%clk 01:07:50]} {[%emt 00:02:22]} 10.
Bxd7 {[%clk 01:22:19]} {[%emt 00:00:24]} Nbxd7 {[%clk 01:05:48]} {[%emt
00:02:32]} 11. O-O {[%clk 01:22:19]} {[%emt 00:00:30]} Nc5 {[%clk 01:01:45]}
{[%emt 00:04:32]} 12. Qd1 {[%clk 01:19:08]} {[%emt 00:03:42]} Nfe4 {[%clk
00:59:52]} {[%emt 00:02:22]} 13. Nde2 {[%clk 01:18:48]} {[%emt 00:00:50]} Nxc3
{[%clk 00:44:15]} {[%emt 00:16:07]} 14. Nxc3 {[%clk 01:19:03]} {[%emt
00:00:15]} d4 {[%clk 00:43:14]} {[%emt 00:01:32]} 15. exd4 {[%clk 01:18:31]}
{[%emt 00:01:02]} Ne6 {[%clk 00:42:52]} {[%emt 00:00:51]} 16. d5 {[%clk
01:17:49]} {[%emt 00:01:12]} Nc7 {[%clk 00:41:46]} {[%emt 00:01:36]} 17. Bf4
{[%clk 01:15:37]} {[%emt 00:02:42]} Bd6 {[%clk 00:38:51]} {[%emt 00:03:26]} 18.
Bxd6 {[%clk 01:15:25]} {[%emt 00:00:42]} Qxd6 {[%clk 00:39:19]} {[%emt
00:00:01]} 19. Qb3 {[%clk 01:15:38]} {[%emt 00:00:17]} Rfd8 {[%clk 00:37:01]}
{[%emt 00:02:48]} 20. Rfd1 {[%clk 01:15:33]} {[%emt 00:00:35]} Qe5 {[%clk
00:35:27]} {[%emt 00:02:04]} 21. Re1 {[%clk 01:15:32]} {[%emt 00:00:32]} Qd6
{[%clk 00:33:22]} {[%emt 00:02:35]} 22. Rad1 {[%clk 01:15:28]} {[%emt
00:00:33]} f5 {[%emt 00:07:07]} 23. Qxb7 {[%clk 01:13:22]} {[%emt 00:02:33]}
Rab8 {[%clk 00:24:56]} {[%emt 00:02:22]} 24. Qxa7 {[%clk 01:13:02]} {[%emt
00:00:51]} Rxb2 {[%clk 00:24:52]} {[%emt 00:00:33]} 25. Qd4 {[%clk 01:12:05]}
{[%emt 00:01:26]} Rb4 {[%clk 00:21:27]} {[%emt 00:03:56]} 26. Qd3 {[%clk
01:08:24]} {[%emt 00:04:11]} g6 {[%clk 00:19:07]} {[%emt 00:02:51]} 27. g3
{[%clk 01:07:47]} {[%emt 00:01:07]} Rb2 {[%clk 00:18:29]} {[%emt 00:01:07]} 28.
Qd4 {[%clk 01:06:44]} {[%emt 00:01:33]} Rb4 {[%clk 00:17:52]} {[%emt 00:01:07]}
29. Qe3 {[%clk 01:05:57]} {[%emt 00:01:17]} Re8 {[%clk 00:16:59]} {[%emt
00:01:23]} 30. Qd2 {[%clk 01:05:09]} {[%emt 00:01:18]} Rd8 {[%clk 00:16:49]}
{[%emt 00:00:41]} 31. Rb1 {[%clk 01:05:09]} {[%emt 00:00:27]} Rxb1 {[%clk
00:16:03]} {[%emt 00:01:19]} 32. Rxb1 {[%clk 01:05:32]} {[%emt 00:00:07]} Ne6
{[%clk 00:13:08]} {[%emt 00:03:25]} 33. Qe3 {[%clk 01:05:08]} {[%emt 00:00:53]}
Nc5 {[%clk 00:13:06]} {[%emt 00:00:32]} 34. Qd4 {[%clk 01:04:51]} {[%emt
00:00:47]} Ne6 {[%clk 00:12:27]} {[%emt 00:01:09]} 35. Qf6 {[%clk 01:05:02]}
{[%emt 00:00:18]} Nc7 {[%clk 00:11:51]} {[%emt 00:01:07]} 36. Qxd6 {[%clk
01:05:16]} {[%emt 00:00:17]} Rxd6 {[%clk 00:12:20]} 37. Rb8+ {[%clk 01:05:38]}
{[%emt 00:00:08]} 1-0

[Event "Vetern-SM 50+ 2025"]
[Site "Uppsala, Sweden"]
[Date "2025.07.05"]
[Round "8.2"]
[White "Gamback, Bjorn"]
[Black "Johansen, Peter"]
[Result "1-0"]
[TimeControl "90 min for 40 move + 30 min with an increment of 30 sec starting move 1"]
[WhiteTitle "CM"]
[WhiteFideId "1703161"]
[BlackFideId "1723944"]
[WhiteElo "1996"]
[BlackElo "2104"]

1. Nf3 {[%clk 01:29:35]} {[%emt 00:01:24]} d5 {[%clk 01:30:43]} {[%emt
00:00:18]} 2. d4 {[%clk 01:29:48]} {[%emt 00:00:17]} c6 {[%clk 01:30:23]}
{[%emt 00:00:50]} 3. c4 {[%clk 01:30:01]} {[%emt 00:00:16]} e6 {[%clk
01:30:35]} {[%emt 00:00:19]} 4. Qc2 {[%clk 01:30:07]} {[%emt 00:00:22]} Bd6
{[%clk 01:26:29]} {[%emt 00:04:37]} 5. Bg5 {[%clk 01:28:17]} {[%emt 00:02:20]}
f6 {[%clk 01:17:48]} {[%emt 00:09:12]} 6. Bh4 {[%clk 01:28:07]} {[%emt
00:00:38]} Qa5+ {[%clk 01:17:20]} {[%emt 00:00:58]} 7. Nbd2 {[%clk 01:27:16]}
{[%emt 00:01:22]} Nh6 {[%clk 01:12:27]} {[%emt 00:05:23]} 8. Bg3 {[%clk
01:25:30]} {[%emt 00:02:15]} Nf7 {[%clk 01:09:42]} {[%emt 00:03:17]} 9. e3
{[%clk 01:24:23]} {[%emt 00:01:36]} Nd7 {[%clk 01:06:28]} {[%emt 00:03:45]} 10.
cxd5 {[%clk 00:49:37]} {[%emt 00:35:15]} exd5 {[%clk 01:04:08]} {[%emt
00:02:50]} 11. Bd3 {[%clk 00:48:56]} {[%emt 00:01:11]} Nf8 {[%clk 01:01:20]}
{[%emt 00:03:19]} 12. O-O {[%clk 00:38:41]} {[%emt 00:10:45]} Bxg3 {[%clk
00:50:13]} {[%emt 00:11:36]} 13. hxg3 {[%clk 00:37:48]} {[%emt 00:01:23]} Nd6
{[%clk 00:50:13]} {[%emt 00:00:30]} 14. e4 {[%clk 00:34:20]} {[%emt 00:03:58]}
dxe4 {[%clk 00:48:51]} {[%emt 00:01:52]} 15. Nxe4 {[%clk 00:34:34]} {[%emt
00:00:16]} Qd5 {[%clk 00:39:21]} {[%emt 00:09:59]} 16. Rfe1 {[%clk 00:30:40]}
{[%emt 00:04:25]} Be6 {[%clk 00:26:57]} {[%emt 00:12:54]} 17. Nc3 {[%clk
00:23:55]} {[%emt 00:07:15]} Qh5 {[%clk 00:26:06]} {[%emt 00:01:20]} 18. d5
{[%clk 00:22:53]} {[%emt 00:01:32]} cxd5 {[%clk 00:26:18]} {[%emt 00:00:19]} 19.
Nb5 {[%clk 00:22:59]} {[%emt 00:00:24]} Nxb5 {[%clk 00:25:00]} {[%emt
00:01:48]} 20. Bxb5+ {[%clk 00:23:26]} {[%emt 00:00:03]} Kd8 {[%clk 00:22:15]}
{[%emt 00:03:15]} 21. Qc5 {[%clk 00:21:23]} {[%emt 00:02:33]} Qf7 {[%clk
00:17:16]} {[%emt 00:05:29]} 22. Qd6+ {[%clk 00:20:22]} {[%emt 00:01:31]} Bd7
{[%clk 00:17:34]} {[%emt 00:00:12]} 23. Rac1 {[%clk 00:19:32]} {[%emt
00:01:19]} Rc8 {[%clk 00:15:37]} {[%emt 00:02:28]} 24. Rxc8+ {[%clk 00:19:41]}
{[%emt 00:00:21]} Kxc8 {[%clk 00:16:04]} {[%emt 00:00:03]} 25. Rc1+ {[%clk
00:19:56]} {[%emt 00:00:15]} Kd8 {[%clk 00:16:08]} {[%emt 00:00:27]} 26. Qc7+
{[%clk 00:18:36]} {[%emt 00:01:49]} Ke8 {[%clk 00:16:30]} {[%emt 00:00:08]} 27.
Re1+ {[%clk 00:18:07]} {[%emt 00:00:59]} Ne6 {[%clk 00:16:37]} {[%emt
00:00:24]} 28. Qc8+ {[%clk 00:18:25]} {[%emt 00:00:11]} 1-0